fUST/lending_fUST_20251120
["ID","MTS","AMOUNT","RATE_DAILY","PERIOD"]
[394434447,1763569421864,771.879744,0.00040426,29]
[394434448,1763569422188,771.879744,0.00040426,29]
[394434449,1763569422681,771.879744,0.00040426,29]
[394434450,1763569423069,771.879744,0.00040426,29]
[394434451,1763569423375,771.879744,0.00040426,29]
[394434452,1763569423775,771.879744,0.00040426,29]
[394434453,1763569424159,771.879751,0.00040426,29]
[394434454,1763569479246,303.095605,0.00040426,29]
[394434455,1763569479686,303.095605,0.00040426,29]
[394434456,1763569480240,303.095605,0.00040426,29]
[394434457,1763569480884,303.095605,0.00040426,29]
[394434458,1763569481447,303.095605,0.00040426,29]
[394434459,1763569482112,303.095605,0.00040426,29]
[394434460,1763569482505,303.095605,0.00040426,29]
[394434461,1763569483009,303.095605,0.00040426,29]
[394434462,1763569483732,303.095605,0.00040426,29]
[394434463,1763569484378,303.095605,0.00040426,29]
[394434464,1763569484910,303.095605,0.00040426,29]
[394434465,1763569485381,303.095605,0.00040426,29]
[394434466,1763569485724,303.095605,0.00040426,29]
[394434467,1763569486114,303.095605,0.00040426,29]
[394434468,1763569486903,303.095605,0.00040426,29]
[394434470,1763569487447,303.095605,0.00040426,29]
[394434473,1763569488817,303.095605,0.00040426,29]
[394434475,1763569489895,303.095605,0.00040426,29]
[394434477,1763569490548,303.095605,0.00040426,29]
[394434479,1763569491112,303.095609,0.00040426,29]
[394434493,1763569516244,-396.67528982,0.00012655,2]
[394434499,1763569561774,168.03,5e-05,2]
[394434500,1763569562135,168.03,5.1e-05,2]
[394434501,1763569562448,168.03,5.3e-05,2]
[394434502,1763569562785,168.03,5.4e-05,2]
[394434503,1763569563081,168.03,5.6e-05,2]
[394434504,1763569563391,168.03,5.7e-05,2]
[394434505,1763569563697,168.03,5.9e-05,2]
[394434506,1763569563988,168.03,6e-05,2]
[394434507,1763569564296,168.03,6.1e-05,2]
[394434508,1763569564587,168.03,6.3e-05,2]
[394434509,1763569564757,-153.01727088,0.00012528,2]
[394434510,1763569564873,168.03,6.4e-05,2]
[394434511,1763569565164,168.03,6.6e-05,2]
[394434512,1763569565443,168.03,6.7e-05,2]
[394434513,1763569565734,168.03,6.9e-05,2]
[394434514,1763569566031,168.03,7e-05,2]
[394434515,1763569566426,168.03,7.1e-05,2]
[394434516,1763569566767,168.03,7.3e-05,2]
[394434518,1763569567831,168.03,7.4e-05,2]
[394434519,1763569568057,168.03,7.6e-05,2]
[394434520,1763569568401,168.03,7.7e-05,2]
[394434521,1763569568431,-698.00002822,0.00012528,2]
[394434522,1763569568715,168.03,7.9e-05,2]
[394434523,1763569569014,168.03,8e-05,2]
[394434524,1763569569465,168.03,8.1e-05,2]
[394434525,1763569569772,168.03,8.3e-05,2]
[394434526,1763569570058,168.03,8.4e-05,2]
[394434527,1763569570576,168.03,8.6e-05,2]
[394434528,1763569570766,-153.01727088,0.00012528,2]
[394434529,1763569571050,168.03,8.7e-05,2]
[394434531,1763569571350,168.03,8.9e-05,2]
[394434532,1763569571651,168.03,9e-05,2]
[394434533,1763569571953,168.03,9.1e-05,2]
[394434534,1763569572260,168.03,9.3e-05,2]
[394434535,1763569572481,-913.95387397,0.00012528,2]
[394434536,1763569572586,168.03,9.4e-05,2]
[394434537,1763569572871,168.03,9.6e-05,2]
[394434538,1763569573235,168.03,9.7e-05,2]
[394434539,1763569574311,168.03,9.9e-05,2]
[394434540,1763569574584,168.03,0.0001,2]
[394434541,1763569574887,168.03,0.000101,2]
[394434542,1763569575176,168.03,0.000103,2]
[394434543,1763569575484,168.03,0.000104,2]
[394434544,1763569575837,-192.09411889,0.00012528,2]
[394434545,1763569575878,168.03,0.000106,2]
[394434546,1763569576156,168.03,0.000107,2]
[394434547,1763569576443,168.03,0.000109,2]
[394434548,1763569576773,168.03,0.00011,2]
[394434549,1763569577068,168.03,0.000111,2]
[394434550,1763569577337,168.03,0.000113,2]
[394434551,1763569577637,168.03,0.000114,2]
[394434552,1763569577940,168.03,0.000116,2]
[394434553,1763569578212,-364.89175421,0.00012528,2]
[394434554,1763569578253,168.03,0.000117,2]
[394434555,1763569578516,168.03,0.000119,2]
[394434556,1763569578794,168.03,0.00012,2]
[394434557,1763569580417,-458.89703224,0.00012528,2]
[394434558,1763569583745,-532.56953448,0.00012528,2]
[394434559,1763569586326,-169.45799399,0.00012528,2]
[394434560,1763569589479,-300.0,0.00012528,2]
[394434561,1763569593279,-373.65466446,0.00012528,2]
[394434562,1763569596322,-251.47468717,0.00012528,2]
[394434563,1763569600108,-307.70470909,0.00012528,2]
[394434564,1763569602546,-231.26706152,0.00012528,2]
[394434566,1763569629881,607.8,0.0003287,120]
[394434567,1763569631742,655.1909297,0.00011655,2]
[394434568,1763569639707,908.48665058,0.00040428,30]
[394434570,1763569646276,405.36973538,0.00040428,30]
[394434571,1763569664380,19886.96299633,0.000155,3]
[394434572,1763569664405,23870.03700367,0.000155,3]
[394434574,1763569680973,-48.24734481,0.00012528,2]
[394434575,1763569681005,-218.35325864,0.00012591,2]
[394434576,1763569681025,-48.24734481,0.00012653,2]
[394434577,1763569681041,-218.35325864,0.00012653,2]
[394434578,1763569681054,-33.39939655,0.00012653,2]
[394434579,1763569681064,-233.39939655,0.00012653,2]
[394434580,1763569682276,1026.63864543,0.00040428,32]
[394434581,1763569685389,512.58830036,0.00040428,30]
[394434582,1763569700597,999.999983,0.00040428,120]
[394434583,1763569702878,919.63997943,0.00040428,60]
[394434585,1763569704409,180.37666372,0.00040428,120]
[394434586,1763569704779,875.80076021,0.00040428,120]
[394434587,1763569705503,359.85781548,0.00040428,120]
[394434588,1763569705763,716.06856158,0.00040428,120]
[394434589,1763569705904,208.32450504,0.00040428,30]
[394434590,1763569705961,-400.0,0.00012653,2]
[394434591,1763569707379,153.46027145,0.00040428,30]
[394434592,1763569707749,195.91133928,0.00040428,30]
[394434593,1763569708534,782.3326343,0.0002,120]
[394434594,1763569708847,10940.0,0.00040428,30]
[394434595,1763569709292,32848.25796714,0.00040428,90]
[394434596,1763569709632,878.34211252,0.00040428,45]
[394434597,1763569710058,203.25143491,0.00040428,120]
[394434598,1763569710953,221.5535627,0.00025,120]
[394434599,1763569711171,671.47615568,0.00040428,120]
[394434600,1763569713397,732.52337681,0.00032,120]
[394434601,1763569713476,159.19121289,0.00040428,30]
[394434602,1763569714910,325.62605147,0.00040428,120]
[394434603,1763569715696,1042.44634388,0.00040428,120]
[394434604,1763569716110,1043.70665979,0.00040428,120]
[394434605,1763569716273,1044.87697714,0.0003,120]
[394434606,1763569717133,204.061614,0.00040428,60]
[394434607,1763569718252,235.1889313,0.000295,120]
[394434608,1763569718656,914.24418618,0.00040428,30]
[394434609,1763569718792,1046.85099371,0.00040428,120]
[394434610,1763569719590,157.679996,0.0003,120]
[394434611,1763569719840,773.97999857,0.00040428,120]
[394434612,1763569720404,1068.0,0.0003,120]
[394434613,1763569721425,761.14936261,0.00040428,120]
[394434614,1763569721673,1029.38678295,0.00040428,120]
[394434615,1763569722073,1021.65060388,0.00040428,60]
[394434616,1763569722127,400.21608915,0.00040428,30]
[394434617,1763569722701,263.42591015,0.00040428,120]
[394434618,1763569723324,26124.98985798,0.00040428,30]
[394434619,1763569723521,194.47041267,0.00040428,20]
[394434620,1763569724164,508.62351397,0.00040428,30]
[394434621,1763569724368,81919.47941934,0.00040428,120]
[394434622,1763569724416,399.1737133,0.00040428,120]
[394434624,1763569811039,17300.0,0.00040428,120]
[394434625,1763569812256,250.0,0.00040436,120]
[394434719,1763569838026,-296.2949352,0.00012652,2]
[394434722,1763569838055,-203.7050648,0.00012652,2]
[394434724,1763569838065,-451.08566556,0.00012652,2]
[394434748,1763569838595,-48.91433444,0.00012652,2]
[394434750,1763569838605,-500.0,0.00012652,2]
[394434752,1763569838614,-500.0,0.00012652,2]
[394434754,1763569838624,-500.0,0.00012652,2]
[394434756,1763569838633,-500.0,0.00012652,2]
[394434758,1763569838643,-500.0,0.00012652,2]
[394434760,1763569838652,-500.0,0.00012652,2]
[394434762,1763569838661,-500.0,0.00012652,2]
[394434764,1763569838671,-500.0,0.00012652,2]
[394434766,1763569838684,-500.0,0.00012652,2]
[394434768,1763569838693,-500.0,0.00012652,2]
[394434770,1763569838703,-500.0,0.00012652,2]
[394434772,1763569838712,-500.0,0.00012652,2]
[394434774,1763569838722,-500.0,0.00012652,2]
[394434775,1763569838732,-500.0,0.00012652,2]
[394434777,1763569838741,-500.0,0.00012652,2]
[394434779,1763569838751,-500.0,0.00012652,2]
[394434782,1763569838760,-500.0,0.00012652,2]
[394434783,1763569838770,-500.0,0.00012652,2]
[394434785,1763569838779,-500.0,0.00012652,2]
[394434787,1763569838788,-500.0,0.00012652,2]
[394434789,1763569838798,-500.0,0.00012652,2]
[394434791,1763569838808,-168.10481336,0.00012652,2]
[394434793,1763569838818,-500.0,0.00012652,2]
[394434795,1763569838827,-500.0,0.00012652,2]
[394434797,1763569838836,-275.82958848,0.00012652,2]
[394434799,1763569838846,-500.0,0.00012652,2]
[394434801,1763569838855,-500.0,0.00012652,2]
[394434803,1763569838864,-500.0,0.00012652,2]
[394434814,1763569838963,-283.2374872,0.00012652,2]
[394434816,1763569838972,-500.0,0.00012652,2]
[394434818,1763569838981,-500.0,0.00012652,2]
[394434820,1763569838991,-500.0,0.00012652,2]
[394434822,1763569839000,-500.0,0.00012652,2]
[394434824,1763569839009,-500.0,0.00012652,2]
[394434826,1763569839018,-500.0,0.00012652,2]
[394434828,1763569839028,-500.0,0.00012652,2]
[394434830,1763569839037,-500.0,0.00012652,2]
[394434832,1763569839047,-500.0,0.00012652,2]
[394434834,1763569839056,-500.0,0.00012652,2]
[394434836,1763569839065,-500.0,0.00012652,2]
[394434838,1763569839078,-500.0,0.00012652,2]
[394434840,1763569839087,-500.0,0.00012652,2]
[394434842,1763569839097,-316.78729598,0.00012652,2]
[394434843,1763569839106,-300.0,0.00012652,2]
[394434845,1763569839116,-1200.0,0.00012652,2]
[394434847,1763569839125,-500.0,0.00012653,2]
[394434849,1763569839136,-50000.0,0.00012653,2]
[394434852,1763569839146,-566.60060345,0.00012653,2]
[394434854,1763569839156,-19715.82881499,0.00012658,2]
[394434856,1763569839166,-343714.44453039,0.0001266,2]
[394434859,1763569839190,-269.87371503,0.0001266,2]
[394434861,1763569839200,-20722.0,0.0001266,2]
[394435023,1763569840690,-1022.93558207,0.0001266,2]
[394435037,1763569840837,-3e-08,0.0001266,2]
[394435038,1763569840850,-4233.76347368,0.0001266,2]
[394435039,1763569840862,-7046.46959757,0.0001266,2]
[394435040,1763569840873,-781.27621181,0.0001266,2]
[394435282,1763569845872,-859.72294245,0.0001266,2]
[394435283,1763569845943,-7790.11946386,0.0001266,2]
[394435284,1763569845955,-1692.43671389,0.000128,2]
[394435290,1763569955975,-500.0,0.00012524,2]
[394435291,1763569956002,-78.13417001,0.00012524,2]
[394435292,1763569958507,-375.03553475,0.00012524,2]
[394435293,1763569960628,-198.20680074,0.00012524,2]
[394435294,1763569960654,-500.0,0.00012524,2]
[394435295,1763569960681,-315.57888743,0.00012524,2]
[394435296,1763569963105,-163.44132155,0.00012524,2]
[394435297,1763569964860,-172.35629652,0.00012524,2]
[394435298,1763569964884,-90.92288308,0.00012524,2]
[394435299,1763569967297,-409.07711692,0.00012524,2]
[394435300,1763569967323,-53.53868659,0.00012524,2]
[394435301,1763569998578,200.0,0.00032877,120]
[394435302,1763570011420,-300.0,0.00012523,2]
[394435303,1763570011443,-7.09728476,0.00012524,2]
[394435304,1763570016063,-165.0722655,0.00012524,2]
[394435305,1763570019144,-181.85896464,0.00012524,2]
[394435306,1763570019173,-83.78868736,0.00012524,2]
[394435307,1763570020883,-182.49704625,0.00012524,2]
[394435308,1763570023782,-385.09077189,0.00012524,2]
[394435309,1763570023809,-493.41517691,0.00012524,2]
[394435310,1763570025493,-157.96132859,0.00012524,2]
[394435311,1763570025518,-27.62593097,0.00012524,2]
[394435312,1763570027200,-152.80392035,0.00012524,2]
[394435313,1763570032693,-319.57014868,0.00012524,2]
[394435314,1763570032718,-241.83996993,0.00012524,2]
[394435315,1763570036567,-252.15,0.00012524,2]
[394435316,1763570039004,-6.01003007,0.00012524,2]
[394435317,1763570039028,-389.70939677,0.00012524,2]
[394435318,1763570040852,-40.74351636,0.00012524,2]
[394435319,1763570040878,-217.73010084,0.00012524,2]
[394435320,1763570044522,-271.91732629,0.00012524,2]
[394435321,1763570048709,-160.93502787,0.00012523,2]
[394435322,1763570050497,-139.06497213,0.00012523,2]
[394435323,1763570050521,-10.35257287,0.00012524,2]
[394435324,1763570050545,-224.6043115,0.00012524,2]
[394435325,1763570052191,-261.84357113,0.00012524,2]
[394435326,1763570057090,-13.55211737,0.00012524,2]
[394435327,1763570057113,-368.34583769,0.00012524,2]
[394435328,1763570060041,-131.65416231,0.00012524,2]
[394435329,1763570060063,-100.18976451,0.00012524,2]
[394435330,1763570061824,-347.16894728,0.00012524,2]
[394435331,1763570066187,-52.64128821,0.00012524,2]
[394435332,1763570066212,-224.97765982,0.00012524,2]
[394435333,1763570070145,-163.46915366,0.00012524,2]
[394435334,1763570071856,-111.55318652,0.00012524,2]
[394435335,1763570071880,-136.72055885,0.00012524,2]
[394435336,1763570075046,-500.0,0.00012523,2]
[394435337,1763570075597,-500.0,0.00012523,2]
[394435338,1763570075624,-500.0,0.00012523,2]
[394435339,1763570075654,-500.0,0.00012523,2]
[394435340,1763570075682,-500.0,0.00012523,2]
[394435341,1763570075710,-500.0,0.00012523,2]
[394435342,1763570075736,-500.0,0.00012523,2]
[394435343,1763570075763,-500.0,0.00012523,2]
[394435344,1763570075790,-500.0,0.00012523,2]
[394435345,1763570075816,-500.0,0.00012523,2]
[394435346,1763570075842,-500.0,0.00012523,2]
[394435347,1763570075867,-500.0,0.00012523,2]
[394435348,1763570075894,-500.0,0.00012523,2]
[394435349,1763570075921,-500.0,0.00012523,2]
[394435350,1763570075946,-500.0,0.00012523,2]
[394435351,1763570075971,-500.0,0.00012523,2]
[394435352,1763570075995,-500.0,0.00012523,2]
[394435353,1763570076022,-500.0,0.00012523,2]
[394435354,1763570076047,-500.0,0.00012523,2]
[394435355,1763570076073,-500.0,0.00012523,2]
[394435356,1763570076098,-276.60317853,0.00012523,2]
[394435357,1763570076136,-500.0,0.00012523,2]
[394435358,1763570076169,-276.53761638,0.00012523,2]
[394435359,1763570076208,-500.0,0.00012523,2]
[394435360,1763570076234,-500.0,0.00012523,2]
[394435361,1763570076259,-500.0,0.00012523,2]
[394435362,1763570076285,-500.0,0.00012523,2]
[394435363,1763570076310,-500.0,0.00012523,2]
[394435364,1763570076333,-316.78729598,0.00012524,2]
[394435365,1763570076356,-16758.07190911,0.00012524,2]
[394435366,1763570079785,-379.06002688,0.00012523,2]
[394435367,1763570082308,-120.93997312,0.00012523,2]
[394435368,1763570082331,-39.57835684,0.00012523,2]
[394435369,1763570083982,-261.89247249,0.00012523,2]
[394435370,1763570085643,-175.7228579,0.00012523,2]
[394435371,1763570087627,-22.80631277,0.00012523,2]
[394435372,1763570087648,-159.07864215,0.00012524,2]
[394435373,1763570090070,-439.72,0.00012524,2]
[394435374,1763570091715,-354.21,0.00012524,2]
[394435375,1763570094777,-172.48931111,0.00012524,2]
[394435376,1763570096464,-200.97609246,0.00012524,2]
[394435377,1763570098136,-223.57,0.00012524,2]
[394435378,1763570100580,-229.46608671,0.00012524,2]
[394435379,1763570103330,398.06352441,0.00040436,60]
[394435380,1763570103636,-168.09854107,0.00012523,2]
[394435381,1763570104183,1005.187,0.000328,120]
[394435382,1763570107996,3342.06375731,0.00040436,20]
[394435383,1763570110101,-131.90145893,0.00012523,2]
[394435384,1763570110123,-211.53658001,0.00012523,2]
[394435385,1763570111956,-190.95036269,0.00012523,2]
[394435386,1763570113829,-253.13419051,0.00012523,2]
[394435387,1763570116542,-377.55566224,0.00012523,2]
[394435388,1763570120217,-165.15505969,0.00012523,2]
[394435389,1763570122984,-1.66814486,0.00012523,2]
[394435390,1763570123008,-300.0,0.00012523,2]
[394435391,1763570123030,-20.1724714,0.00012524,2]
[394435392,1763570127363,-292.89105075,0.00012524,2]
[394435393,1763570129719,-248.36945596,0.00012524,2]
[394435394,1763570131562,-272.48418049,0.00012524,2]
[394435395,1763570137203,-155.14203475,0.00012524,2]
[394435396,1763570138943,-155.14203475,0.00012524,2]
[394435397,1763570145372,-282.703553,0.00012524,2]
[394435398,1763570147653,-425.20897207,0.00012524,2]
[394435399,1763570151828,-171.84415774,0.00012524,2]
[394435400,1763570153580,-175.27308139,0.00012524,2]
[394435401,1763570156294,541.368,0.00014,10]
[394435402,1763570156781,-238.53557517,0.00012524,2]
[394435403,1763570160987,-662.31627973,0.00012524,2]
[394435404,1763570164029,-419.10278784,0.00012524,2]
[394435405,1763570168438,-169.76668593,0.00012523,2]
[394435406,1763570170157,-130.23331407,0.00012523,2]
[394435407,1763570170188,-557.21555459,0.00012523,2]
[394435408,1763570173843,2419.95249274,0.00012423,2]
[394435409,1763570175491,-175.52271418,0.00012523,2]
[394435410,1763570177235,-271.27581898,0.00012523,2]
[394435411,1763570179635,-240.89493648,0.00012523,2]
[394435412,1763570183069,-534.59055445,0.00012523,2]
[394435413,1763570185369,-298.22859814,0.00012523,2]
[394435414,1763570187870,-185.42548979,0.00012523,2]
[394435415,1763570191889,-310.15941068,0.00012523,2]
[394435416,1763570194976,-158.62156415,0.00012523,2]
[394435417,1763570200664,-151.56386386,0.00012522,2]
[394435418,1763570202521,-419.1815727,0.00012522,2]
[394435419,1763570207775,-356.79485054,0.00012522,2]
[394435420,1763570210216,-277.11711656,0.00012522,2]
[394435421,1763570210241,-0.77876449,0.00012522,2]
[394435422,1763570216286,-231.24014149,0.00012522,2]
[394435423,1763570217995,-171.83081564,0.00012522,2]
[394435424,1763570222050,-182.43952044,0.00012522,2]
[394435425,1763570222073,-97.28547497,0.00012522,2]
[394435426,1763570222790,528.62566618,0.00012397,2]
[394435427,1763570223930,-402.71452503,0.00012522,2]
[394435428,1763570223957,-65.15618497,0.00012522,2]
[394435429,1763570230262,-315.0943809,0.00012522,2]
[394435430,1763570232647,-155.76761453,0.00012522,2]
[394435431,1763570234393,-442.70404882,0.00012522,2]
[394435432,1763570238004,-175.78239429,0.00012522,2]
[394435433,1763570244998,476.16303307,0.00012397,2]
[394435434,1763570282079,154.76,5e-05,2]
[394435435,1763570282432,154.76,6e-05,2]
[394435436,1763570283385,154.76,7e-05,2]
[394435437,1763570283721,154.76,8e-05,2]
[394435438,1763570284029,154.76,9e-05,2]
[394435439,1763570284377,154.76,0.0001,2]
[394435440,1763570284663,154.76,0.00011,2]
[394435441,1763570317783,867.0,0.00012396,2]
[394435442,1763570325394,867.0,0.00012396,2]
[394435443,1763570336591,161.0,1.11e-06,2]
[394435444,1763570337808,161.0,1.11e-06,2]
[394435445,1763570338726,161.0,1.11e-06,2]
[394435446,1763570341083,867.0,0.00012396,2]
[394435447,1763570341699,154.73,5e-05,2]
[394435448,1763570342127,154.73,5.4e-05,2]
[394435449,1763570343053,154.73,5.9e-05,2]
[394435450,1763570343384,154.73,6.3e-05,2]
[394435451,1763570343667,154.73,6.8e-05,2]
[394435452,1763570343943,154.73,7.2e-05,2]
[394435453,1763570344349,154.73,7.6e-05,2]
[394435454,1763570344663,154.73,8.1e-05,2]
[394435455,1763570344943,154.73,8.5e-05,2]
[394435456,1763570345220,154.73,8.9e-05,2]
[394435457,1763570345498,154.73,9.4e-05,2]
[394435458,1763570345846,154.73,9.8e-05,2]
[394435459,1763570346166,154.73,0.000103,2]
[394435460,1763570346458,154.73,0.000107,2]
[394435461,1763570346850,154.73,0.000111,2]
[394435462,1763570347124,154.73,0.000116,2]
[394435463,1763570348817,154.73,0.00010593,2]
[394435464,1763570353544,200.0,0.00040493,20]
[394435465,1763570355608,3570.0,0.00032877,120]
[394435467,1763570364766,300.0,0.00012395,2]
[394435468,1763570372487,300.0,0.00012395,2]
[394435469,1763570380483,300.0,0.00012395,2]
[394435470,1763570388298,300.0,0.00012395,2]
[394435471,1763570396636,300.0,0.00012395,2]
[394435472,1763570401635,154.7,5e-05,2]
[394435473,1763570404437,235.97387852,0.00012395,2]
[394435474,1763570412464,1500.0,0.00012395,2]
[394435475,1763570420232,1500.0,0.00012395,2]
[394435476,1763570428274,1179.8693926,0.00012395,2]
[394435477,1763570436043,1500.0,0.00012395,2]
[394435478,1763570444585,1500.0,0.00012395,2]
[394435479,1763570451879,471.94775704,0.00012395,2]
[394435480,1763570460398,1500.0,0.00012395,2]
[394435481,1763570468224,1200.0,0.00012395,2]
[394435482,1763570469219,382.59,0.00032877,120]
[394435483,1763570483455,1200.0,0.00012395,2]
[394435484,1763570491805,1200.0,0.00012395,2]
[394435485,1763570507153,1200.0,0.00012395,2]
[394435488,1763570514972,1700.0,0.00012395,2]
[394435489,1763570516136,151.0,0.000125,2]
[394435490,1763570530099,300.0,0.00012394,2]
[394435491,1763570538503,300.0,0.00012394,2]
[394435492,1763570553650,300.0,0.00012394,2]
[394435493,1763570561425,300.0,0.00012394,2]
[394435494,1763570577150,567.0,0.00012393,2]
[394435495,1763570584932,567.0,0.00012393,2]
[394435496,1763570600074,567.0,0.00012393,2]
[394435497,1763570607889,567.0,0.00012393,2]
[394435498,1763570612299,77323.77299055,0.00040493,120]
[394435499,1763570615921,235.97387852,0.00012392,2]
[394435500,1763570623683,933.39939755,0.00012392,2]
[394435501,1763570632486,933.39939755,0.00012392,2]
[394435502,1763570640214,235.97387852,0.00012392,2]
[394435503,1763570648223,933.39939755,0.00012392,2]
[394435504,1763570655952,933.39939755,0.00012392,2]
[394435505,1763570671100,933.39939755,0.00012392,2]
[394435506,1763570678991,933.39939755,0.00012392,2]
[394435507,1763570687951,471.94775704,0.00012392,2]
[394435508,1763570695746,933.39939755,0.00012392,2]
[394435509,1763570704694,933.39939755,0.00012392,2]
[394435511,1763570720431,2433.39939755,0.00012392,2]
[394435513,1763570728951,2433.39939755,0.00012392,2]
[394435514,1763570744106,2433.39939755,0.00012392,2]
[394435515,1763570752873,2433.39939755,0.00012392,2]
[394435516,1763570757250,205.574529,0.00040493,40]
[394435517,1763570759239,205.574529,0.00040493,40]
[394435518,1763570768419,2433.39939755,0.00012392,2]
[394435519,1763570818852,151.0,0.000124,2]
[394435520,1763570819267,151.0,0.000122,2]
[394435521,1763570819594,151.0,0.000121,2]
[394435522,1763570825618,304.4822927,0.00027397,120]
[394435680,1763570967030,9547.01,0.00012416,2]
[394435681,1763570967066,270279.47450785,0.00012416,2]
[394435682,1763570967107,610173.51549215,0.00012416,2]
[394435683,1763570969138,-262.33322068,0.00012515,2]
[394435684,1763570969372,5000.0,0.000155,3]
[394435685,1763570977177,1179.8693926,0.000155,3]
[394435686,1763570982844,800.0,0.00040491,120]
[394435687,1763570985961,5000.0,0.000155,3]
[394435688,1763570993711,5000.0,0.000155,3]
[394435689,1763571008857,1500.0,0.0001239,2]
[394435690,1763571016573,1500.0,0.0001239,2]
[394435691,1763571026758,154.0,0.00027,120]
[394435718,1763571031663,1500.0,0.0001239,2]
[394435736,1763571031831,-300.0,0.00012515,2]
[394435739,1763571031841,-988.59600931,0.00012515,2]
[394435957,1763571037679,-211.40399069,0.00012515,2]
[394435959,1763571037689,-500.0,0.00012516,2]
[394435961,1763571037698,-500.0,0.00012516,2]
[394435963,1763571037708,-500.0,0.00012516,2]
[394435965,1763571037717,-500.0,0.00012516,2]
[394435967,1763571037727,-271.46578146,0.00012516,2]
[394435969,1763571037736,-500.0,0.00012516,2]
[394435971,1763571037745,-500.0,0.00012516,2]
[394435973,1763571037754,-500.0,0.00012516,2]
[394435975,1763571037764,-136.39361534,0.00012516,2]
[394435977,1763571037776,-363.60638466,0.00012516,2]
[394435979,1763571037786,-500.0,0.00012516,2]
[394435981,1763571037795,-500.0,0.00012516,2]
[394435983,1763571037803,-500.0,0.00012516,2]
[394435985,1763571037812,-500.0,0.00012516,2]
[394435987,1763571037822,-500.0,0.00012516,2]
[394435989,1763571037831,-500.0,0.00012516,2]
[394435991,1763571037840,-500.0,0.00012516,2]
[394435993,1763571037850,-500.0,0.00012516,2]
[394435995,1763571037859,-500.0,0.00012516,2]
[394435997,1763571037871,-500.0,0.00012516,2]
[394435999,1763571037883,-500.0,0.00012516,2]
[394436001,1763571037892,-500.0,0.00012516,2]
[394436003,1763571037902,-500.0,0.00012516,2]
[394436005,1763571037911,-500.0,0.00012516,2]
[394436007,1763571037920,-500.0,0.00012516,2]
[394436009,1763571037929,-500.0,0.00012516,2]
[394436011,1763571037939,-500.0,0.00012516,2]
[394436013,1763571037948,-500.0,0.00012516,2]
[394436015,1763571037957,-500.0,0.00012516,2]
[394436017,1763571037966,-500.0,0.00012516,2]
[394436019,1763571037976,-500.0,0.00012516,2]
[394436021,1763571037985,-500.0,0.00012516,2]
[394436023,1763571037994,-500.0,0.00012516,2]
[394436025,1763571038003,-500.0,0.00012516,2]
[394436027,1763571038012,-500.0,0.00012516,2]
[394436029,1763571038022,-500.0,0.00012516,2]
[394436031,1763571038031,-500.0,0.00012516,2]
[394436033,1763571038041,-500.0,0.00012516,2]
[394436035,1763571038050,-500.0,0.00012516,2]
[394436037,1763571038060,-500.0,0.00012516,2]
[394436039,1763571038069,-500.0,0.00012516,2]
[394436041,1763571038080,-500.0,0.00012516,2]
[394436043,1763571038089,-500.0,0.00012516,2]
[394436045,1763571038099,-500.0,0.00012516,2]